Cogmind - Beta 13 @@@ ROGUE MODE // 2024.05.01 @ 11:49:06 Player: Rubbe Result: Destroyed by Y-45 Defender with Heavy Assault Rifle Performance ------------- Evolutions (1) 500 Regions Visited (3) 600 Robots Destroyed (16) 80 Value Destroyed (375) 375 Prototype IDs (0) 0 Alien Tech Used (0) 0 Bonus (0) 0 TOTAL SCORE: 1555 Bonus ------- None Cogmind --------- Core Integrity 0/400 Matter 96/300 Energy 30/100 System Corruption 1% Temperature Cool (0) Movement Core (50) Location -9/Materials Parts ------- > --- POWER (1) -------- (None) > --- PROPULSION (3) --- (None) > --- UTILITY (3) ------ Signal Interpreter Signal Interpreter > --- WEAPON (2) ------- Plasma Cutter > --- INVENTORY (5) ---- Small Matter Pod (0) Trap Extractor (0/4) Peak State ------------ > --- POWER ------------ (None) > --- PROPULSION ------- Aluminum Leg Aluminum Leg > --- UTILITY ---------- Sensor Array Signal Interpreter > --- WEAPON ----------- Assault Rifle Rocket Launcher > --- INVENTORY -------- Small Matter Pod Medium Laser Grenade Launcher [Rating: 7] Favorites ----------- Power Light Ion Engine Engine Light Ion Engine Propulsion Aluminum Leg Leg Aluminum Leg Utility Signal Interpreter Device Sensor Array Processor Signal Interpreter Weapon Assault Rifle Energy Gun Medium Laser Ballistic Gun Assault Rifle Launcher Rocket Launcher Special Weapon Plasma Cutter Build | -11 -10 -10 -9 ------- Run | Yrd Mat Min Mat Slots Evolved 2 | . . . 2 Power . | . . . . Propulsion 1 | . . . 1 Utility 1 | . . . 1 Weapon . | . . . . Parts Attached 17 | 4 2 1 10 Power 1 | . . . 1 Engine 1 | . . . 1 Core . | . . . . Reactor . | . . . . Propulsion 2 | 2 . . . Treads . | . . . . Leg 2 | 2 . . . Wheel . | . . . . Hover . | . . . . Flight . | . . . . Utility 3 | . 2 . 1 Device 1 | . 1 . . Storage . | . . . . Processor 2 | . 1 . 1 Hackware . | . . . . Protection . | . . . . Artifact . | . . . . Weapon 11 | 2 . 1 8 Energy Gun 3 | 1 . . 2 Energy Cannon . | . . . . Ballistic Gun 2 | 1 . . 1 Ballistic Cannon . | . . . . Launcher 3 | . . 1 2 Special Weapon 3 | . . . 3 Impact Weapon . | . . . . Slashing Weapon . | . . . . Piercing Weapon . | . . . . Special Melee Weapon . | . . . . Unidentified Prototypes . | . . . . Parts Lost 10 | . . . 10 Power 1 | . . . 1 Propulsion 2 | . . . 2 Utility 1 | . . . 1 Weapon 6 | . . . 6 Highest Loss Streak 4 | . . . 4 To Critical Strikes . | . . . . Average Slot Usage (%) 64 | . 60 85 60 Engine 2 | . . . 5 Leg 20 | . 28 28 13 Device 8 | . 1 14 10 Processor 11 | . 2 14 15 Energy Gun 4 | . 14 1 . Ballistic Gun 10 | . 14 14 7 Launcher 6 | . . 12 7 Naked Turns . | . . . . Heaviest Build 9 | 4 5 7 9 Greatest Support 20 | 20 20 20 20 Greatest Overweight (x) . | . . . . Average Overweight (x) . | . . . . Largest Inventory Capacity 5 | 5 5 5 5 Average Capacity 5 | 5 5 5 5 Most Carried 5 | 4 3 5 5 Average Carried 2 | . . 2 2 Final Capacity 5 | 5 5 5 5 Final Carried 2 | . 2 2 2 Class Distribution -------------------- 88% | Mutant 11% | Scavenger-Mutant Dominant Class ---------------- Mutant | -10/Materials Mutant | -10/Mines Mutant | -9/Materials Resources | -11 -10 -10 -9 ----------- Run | Yrd Mat Min Mat Matter Collected 407 | 218 12 24 153 Remotely . | . . . . Salvage Created 328 | . 12 64 252 Parts 28 | . 4 4 20 Haulers Intercepted . | . . . . Recyclers Shooed 2 | . . . 2 Parts Field Recycled . | . . . . Retrieved Matter . | . . . . Parts Self-Destructed . | . . . . Prevented . | . . . . Kills | -11 -10 -10 -9 ------- Run | Yrd Mat Min Mat Combat Hostiles Destroyed 7 | . . 2 5 Cannons 1 | . . . 1 AOE 6 | . . 2 4 Classes Destroyed 7 | . 1 1 5 Worker 2 | . . . 2 Recycler 2 | . . . 2 Operator 1 | . . . 1 Watcher 4 | . 1 . 3 Swarmer 1 | . . . 1 Grunt 5 | . . 2 3 Sentry 1 | . . . 1 Best Kill Streak 5 | . 1 2 5 Combat Bots Only 3 | . . 2 3 Max Kills in Single Turn 2 | . 1 1 2 Gunslinging . | . . . . Exploded 1 | . . 1 1 Melee . | . . . . Uniques/NPCs Destroyed . | . . . . Combat | -11 -10 -10 -9 -------- Run | Yrd Mat Min Mat Hostile Shots Fired 91 | . . 2 89 Missed 25 | . . . 25 Damage Taken 1049 | . . 100 949 Core 420 | . . 14 406 Absorbed by Shields . | . . . . Core Remaining (%) 97 | 100 . 94 . Volleys Fired 45 | . 1 5 39 Largest 2 | . 2 1 2 Hottest 70 | . 70 33 45 Shots Fired 47 | . 2 5 40 Gun 19 | . 2 . 17 Cannon . | . . . . Launcher 22 | . . 5 17 Special 6 | . . . 6 Kinetic 14 | . 1 . 13 Thermal 7 | . 1 . 6 Explosive 22 | . . 5 17 Electromagnetic 4 | . . . 4 Robot Hit Streak 6 | . 1 2 6 Robot Miss Streak 1 | . . 1 1 Penetration Max . | . . . . Secondary Targets . | . . . . Shots Hit Robots 31 | . 1 2 28 Core Hits 28 | . 1 2 25 Critical Kills . | . . . . Critical Parts Destroyed . | . . . . Critical Strikes . | . . . . Melee Attacks . | . . . . Impact . | . . . . Slashing . | . . . . Piercing . | . . . . Sneak Attacks . | . . . . Combat Hostiles . | . . . . Follow-up Attacks . | . . . . Damage Inflicted 1058 | . 12 133 913 Guns 184 | . 12 . 172 Cannons . | . . . . Explosions 818 | . . 133 685 Melee . | . . . . Ramming . | . . . . Kinetic 120 | . . . 120 Thermal 68 | . 12 . 56 Explosive 818 | . . 133 685 Electromagnetic 52 | . . . 52 Impact . | . . . . Slashing . | . . . . Piercing . | . . . . Highest Corruption 2 | . 2 2 1 Average Corruption 1 | . 2 2 1 Corruption Purged . | . . . . Corruption Blocked . | . . . . Effects 5 | . 1 2 2 Message Errors 2 | . . 1 1 Matter Fused 2 | . 1 1 . Parts Rejected 1 | . . . 1 Overload Shots . | . . . . Overflow Damage 29 | . . . 29 Projectiles . | . . . . Explosions 29 | . . . 29 Melee . | . . . . Knockbacks . | . . . . Impact . | . . . . Kinetic . | . . . . Secondary . | . . . . Self-Inflicted Damage 204 | . . 73 131 Shots 6 | . . 2 4 Rammed . | . . . . Targets Rammed . | . . . . Kicked . | . . . . Crushed . | . . . . Highest Temperature 8 | . . . 8 Average Temperature 6 | . . . 6 Received Heat Transfer 252 | . . 18 234 Siege Activations . | . . . . Robots Corrupted . | . . . . Combat Hostiles . | . . . . Parts Fried . | . . . . Impact Corruptions . | . . . . Robots Melted . | . . . . Combat Hostiles . | . . . . Parts Melted . | . . . . Heat Transferred 222 | . 37 . 185 Parts Sabotaged . | . . . . Parts Stolen . | . . . . Parts Stripped . | . . . . Power Chain Reactions . | . . . . Alert | -11 -10 -10 -9 ------- Run | Yrd Mat Min Mat Peak Influence 385 | . 22 111 385 Initial 42 | . . 8 42 Average 136 | . 5 47 257 Maximum Alert Level 1 | . . . 1 Low Security (%) 67 | 100 100 100 33 Level 1 32 | . . . 66 Level 2 . | . . . . Level 3 . | . . . . Level 4 . | . . . . Level 5 . | . . . . High Security . | . . . . Max Security . | . . . . Squads Dispatched . | . . . . Investigation . | . . . . Extermination . | . . . . Reinforcement . | . . . . Assault . | . . . . Garrison . | . . . . Intercept . | . . . . Searches Triggered . | . . . . Construction Impeded . | . . . . Haulers Reinforced . | . . . . Active Scanning Responses . | . . . . Cargo Convoy Interrupts . | . . . . Stealth | -11 -10 -10 -9 --------- Run | Yrd Mat Min Mat Distress Signals 2 | . . . 2 Communications Jammed . | . . . . Distress Signals . | . . . . Times Spotted 18 | . 1 2 15 Peak Tracking Total 5 | . 1 1 5 Tactical Retreats 1 | . . . 1 Traps | -11 -10 -10 -9 ------- Run | Yrd Mat Min Mat Traps Triggered 1 | . 1 . . Indirectly . | . . . . Trap Hack Attempts . | . . . . Triggered . | . . . . Disarmed . | . . . . Reprogrammed . | . . . . Reused . | . . . . Traps Extracted . | . . . . Installed . | . . . . Triggered . | . . . . Machines | -11 -10 -10 -9 ---------- Run | Yrd Mat Min Mat Machines Disabled 3 | . . 1 2 Max in Single Turn 1 | . . 1 1 Machines Repaired . | . . . . Machines Dismantled . | . . . . Machines Sabotaged . | . . . . Overloaded Fab Kills . | . . . . Hacking | -11 -10 -10 -9 --------- Run | Yrd Mat Min Mat Machines Accessed 3 | . 2 . 1 Terminals 2 | . 1 . 1 Fabricators . | . . . . Repair Stations . | . . . . Recycling Units 1 | . 1 . . Scanalyzers . | . . . . Garrison Access . | . . . . Total Hacks 7 | . 4 . 3 Successful 4 | . 3 . 1 Failed 3 | . 1 . 2 Catastrophic 1 | . . . 1 Database Lockouts . | . . . . Manual 2 | . . . 2 Terminals 5 | . 2 . 3 Fabricators . | . . . . Repair Stations . | . . . . Recycling Units 2 | . 2 . . Scanalyzers . | . . . . Garrison Access . | . . . . Terminal Hacks 2 | . 1 . 1 Hauler Manifests 1 | . 1 . . Zone Layout 1 | . . . 1 Fabricator Hacks . | . . . . Repair Station Hacks . | . . . . Recycling Unit Hacks 2 | . 2 . . Process 1 | . 1 . . Report Inventory 1 | . 1 . . Scanalyzer . | . . . . Garrison Access Hacks . | . . . . Unauthorized Hacks . | . . . . Terminals . | . . . . Fabricators . | . . . . Repair Stations . | . . . . Recycling Units . | . . . . Scanalyzers . | . . . . Garrison Access . | . . . . Data Cores Recovered . | . . . . Used . | . . . . Hacking Detections 2 | . 1 . 1 Full Trace Events 1 | . . . 1 Feedback Events . | . . . . Feedback Blocked . | . . . . Robot Schematics Acquired . | . . . . Robots Built . | . . . . Authchips . | . . . . Time . | . . . . Total Robot Build Rating . | . . . . Part Schematics Acquired . | . . . . Parts Built . | . . . . Authchips . | . . . . Time . | . . . . Total Part Build Rating . | . . . . Parts Repaired . | . . . . Time . | . . . . Parts Recycled . | . . . . Recycled Matter 39 | . 39 . . Retrieved Matter . | . . . . Retrieved Components . | . . . . Parts Scanalyzed . | . . . . Part Schematics Acquired . | . . . . Parts Damaged . | . . . . Bothacking | -11 -10 -10 -9 ------------ Run | Yrd Mat Min Mat Used RIF Installer . | . . . . Robots Hacked . | . . . . Non-combat . | . . . . Combat . | . . . . Robot Hacks Applied . | . . . . Relay Couplers Released . | . . . . Fabnet Peak Effective % . | . . . . Robots Rewired . | . . . . Allies Hacked . | . . . . Hacks Repelled . | . . . . Allies | -11 -10 -10 -9 -------- Run | Yrd Mat Min Mat Total Allies . | . . . . Largest Group . | . . . . Highest-Rated Group . | . . . . Highest-Rated Ally . | . . . . Total Orders . | . . . . Ally Attacks . | . . . . Total Damage . | . . . . Kills . | . . . . Allies Corrupted . | . . . . Allies Melted . | . . . . Intel | -11 -10 -10 -9 ------- Run | Yrd Mat Min Mat Robot Analysis Total . | . . . . Derelict Logs Recovered . | . . . . Drone Launches . | . . . . Drone Recoveries . | . . . . Exploration | -11 -10 -10 -9 ------------- Run | Yrd Mat Min Mat Turns Passed 658 | 44 175 116 323 Spaces Moved 456 | 41 117 84 214 Core 72 | 18 . . 54 Treads . | . . . . Legs 384 | 23 117 84 160 Wheels . | . . . . Hover . | . . . . Flight . | . . . . Fastest Speed 50 | 50 120 120 50 Average Speed 108 | 89 120 120 102 Slowest Speed 120 | 120 120 120 120 Overloaded Moves . | . . . . Propulsion Burnouts . | . . . . Robots Hopped . | . . . . Cave-ins Triggered . | . . . . Exploration Rate (%) 22 | 4 27 28 29 Regions Visited 3 Branch Regions 1 Pre-discovered Areas 1 | . . 1 . Known Exits Taken 2 | . 1 1 . Unknown Exits Taken 1 | 1 . . . Scrap Searched . | . . . . Spaces Dug 19 | . . 19 . Terrain Destroyed 150 | . . 50 100 Melee . | . . . . Projectile . | . . . . AOE 150 | . . 50 100 Terrain Rammed . | . . . . Walls Destroyed . | . . . . Machines Disabled . | . . . . Actions | -11 -10 -10 -9 --------- Run | Yrd Mat Min Mat Total 565 | 48 149 95 273 Wait 28 | . 26 . 2 Move 453 | 40 116 83 214 Hop . | . . . . Pick Up 19 | 4 4 3 8 Fast Attach . | . . . . Attach 14 | 4 2 . 8 Detach . | . . . . Swap 3 | . . 1 2 Drop 3 | . . 3 . Fire 45 | . 1 5 39 Melee . | . . . . Ram . | . . . . Kick . | . . . . Crush . | . . . . Escape Stasis . | . . . . Rewire . | . . . . Trap . | . . . . Miscellaneous . | . . . . Route ------- -11/Scrapyard -10/Materials -10/Mines -9/Materials (discovered 1 exit: [*Sto]) History --------- Turn | Location | Event 9 | -11/Scrapyard | Discovered new exit (range 15) 45 | -11/Scrapyard | Entered Materials 212 | -10/Materials | Discovered new exit (range 7) 218 | -10/Materials | Identified exit to Mines 220 | -10/Materials | Entered Mines 227 | -10/Mines | Received a Rocket Launcher from a helpful Derelict 309 | -10/Mines | Build established: Mutant 322 | -10/Mines | Discovered new exit (range 5) 335 | -10/Mines | Identified exit to Materials 336 | -10/Mines | Learned location of Storage (-9) 336 | -10/Mines | Entered Materials 336 | -9/Materials | Evolved 2 slots: Propulsion x1, Utility x1 627 | -9/Materials | Discovered new exit (range 8) 637 | -9/Materials | Core integrity fell below 50% 641 | -9/Materials | Lost 4 parts (1p1n2w) 649 | -9/Materials | Core integrity fell below 20% 659 | -9/Materials | Destroyed by Y-45 Defender with Heavy Assault Rifle Last Messages --------------- Lgt. Ion Engine destroyed. Destroyed Lgt. Ion Engine. Acquired EM Shotgun. Y-45 Defender IFF system glitched. R-06 Scavenger destroyed. EM Shotgun destroyed. Aluminum Leg destroyed. Connecting with Terminal... >>Layout(Zone) Retrieving Zone 3U layout... Downloaded map data. EXIT=FOUND Acquired Plasma Cutter. S-10 Pest destroyed. Critical hit (Burn: +37). Plasma Cutter destroyed. S-10 Pest destroyed. Sensor Array destroyed. Plasma Cutter destroyed. Acquired Plasma Cutter. Map ----- +----------------------------------------------------+ | ?????????????????????????????????????????????????? | | ?????????????????????????????????????????????????? | | ?????????????????????????????????????????????????? | | ###??????????????????????????????????????????????? | | !!##?????????????????????????????????????????????? | | !#?????????????????????????????????????????????? | | #?? ?????????????????????????????????????????? | | # ????????????????????????????????????????? | | ????????????????????????????????????????? | | ????????????????????????????????????????? | | ????????????????????????????????????????? | | +#???????????????????????????????????????????????? | | ????????????????????????????????????????????????? | | "????????????????????????????????????????????????? | | T????????????????????????????????????????????????? | | "???????????????# ???????????????????????????????? | | ???????????????# ???????????????????????????????? | | ???????????????# #??+##+#???????????????????????? | | ???????????????# #?? ?????????????????????? | | ???#+#????????## ##? ?????????????????????? | | ??? ???????## ## ??????????????????????? | | #??? < ???????? # ???????????????????????? | | ???? ????????? ????????????????????????? | | ????# #?????????# #???##????????????????????? | | ????# #?????????# ##### #????????????????????? | | ????# ########?## # !@Y #????????????????????? | | ????# # #?# # ! #????????????????????? | | ????# # """ #?# # ! #????????????????????? | | ##### # """ #?# #*Ys* #????????????????????? | | + """ ### ##/####????????????????????? | | ####### """ + #???????????????????????? | | #?????# ######## #???????????????????????? | | #?????########??????# #???????????????????????? | | #???????????????????# #???????????????????????? | | #???????????????????# #???????????????????????? | | #???????????????????# #???????????????????????? | | #???????????????????+ ???????????????????????? | | #???????????????????#######??????????????????????? | | #????????????????????????????????????????????????? | | #????????????????????????????????????????????????? | | #????????????????????????????????????????????????? | | #????????????????????????????????????????????????? | | | | | | | | | | | | | | | | | +----------------------------------------------------+ Best States ------------- Heat Dissipation 28 Energy Generation 10 Energy Capacity 125 Matter Stores 282 Matter Capacity 300 Sight Range 16 Robot Scan Range 14 Terrain Scan Density 10 Evasion (%) 55 Item Schematics ----------------- None Robot Schematics ------------------ None Fabricated ------------ Nothing Alien Tech Used ----------------- None Achievements -------------- None Challenges ------------ None Game ------ Seed DroneSuperchargedPendant Manual? 0 Play Time 00:08:01 Cumulative 4.0 hours Start 2024.05.01 @ 11:40:58 End 2024.05.01 @ 11:49:06 Sessions 1 Manual Loads 0 Difficulty Rogue Special Mode None Game No. 15 Rogue 15 Adventurer 0 Explorer 0 Win Type - Total 0 Types 0/0/0/0/0/0/0/0/0 Lore% 7 Gallery% 11 Achievement% 11 Wizard Run 0 Options --------- Layout 1 ASCII 0 Keyboard 0 Movement Mouse Keybinds 0 Fullscreen 1 Font 24/Smallcaps Map View 50x35 Zoom Use 0% Tactical HUD 0 Map Filters NONE Filters NONE Steam 1 RUN: 0ca0860d-98c5-4710-992e-330371eed9ef